bitfinex/quotes_BTCUSD_20250417
["timestamp","ask_amount","ask_price","bid_price","bid_amount"]
[1744861064188,1.31613752,83868.0,83867.0,1e-08]
[1744861075771,1.22393752,83868.0,83867.0,1e-08]
[1744861078411,1.08589752,83868.0,83867.0,1e-08]
[1744861078622,1.22393752,83868.0,83867.0,1e-08]
[1744861078825,1.05393752,83868.0,83867.0,1e-08]
[1744861078975,1.03939667,83868.0,83867.0,1e-08]
[1744861079178,1.05393752,83868.0,83867.0,1e-08]
[1744861079475,0.90989752,83868.0,83867.0,1e-08]
[1744861079871,0.91389752,83868.0,83867.0,1e-08]
[1744861080278,0.90089752,83868.0,83867.0,1e-08]
[1744861080479,0.90089752,83868.0,83867.0,0.04820001]
[1744861080680,0.89867405,83868.0,83867.0,0.04820001]
[1744861081303,0.90567405,83868.0,83867.0,0.04820001]
[1744861081534,0.89867405,83868.0,83867.0,0.04820001]
[1744861081717,0.90367405,83868.0,83867.0,0.04820001]
[1744861082097,0.89967405,83868.0,83867.0,0.04820001]
[1744861082303,0.90267405,83868.0,83867.0,0.04820001]
[1744861083343,0.56267405,83868.0,83867.0,0.04820001]
[1744861084092,0.44322614,83868.0,83867.0,0.09810001]
[1744861086009,0.01778529,83868.0,83867.0,0.33657283]
[1744861086191,0.008,83868.0,83867.0,0.35887394]
[1744861087062,0.005,83868.0,83867.0,0.35887394]
[1744861087265,0.01454085,83871.0,83867.0,0.37079758]
[1744861087440,0.01454085,83871.0,83868.0,0.01192349]
[1744861087637,0.00818546,83870.0,83869.0,0.02230111]
[1744861088644,0.00818546,83870.0,83868.0,0.01192349]
[1744861089070,0.01318546,83870.0,83868.0,0.25039083]
[1744861089245,0.01318546,83870.0,83868.0,0.01192349]
[1744861089650,0.01454085,83869.0,83868.0,0.01192349]
[1744861089849,0.02272309,83869.0,83868.0,0.03419069]
[1744861090308,0.02272309,83869.0,83868.0,0.01192349]
[1744861091798,0.02672309,83869.0,83868.0,0.01192349]
[1744861092163,0.02472309,83869.0,83868.0,0.01192349]
[1744861092698,0.02272309,83869.0,83868.0,0.01192349]
[1744861093122,0.02372309,83869.0,83868.0,0.01192349]
[1744861093571,0.02672309,83869.0,83868.0,0.01292349]
[1744861093789,0.01854085,83869.0,83868.0,0.03517651]
[1744861094949,0.004,83869.0,83868.0,0.03517651]
[1744861095150,0.004,83869.0,83868.0,0.08256093]
[1744861096502,0.004,83869.0,83868.0,0.12846093]
[1744861097661,0.001,83869.0,83868.0,0.12746093]
[1744861097865,0.00011877,83873.0,83872.0,0.3327586]
[1744861098504,0.00011877,83873.0,83872.0,0.35501162]
[1744861098703,0.00011877,83873.0,83872.0,0.47445953]
[1744861098909,0.00111877,83873.0,83872.0,0.47445953]
[1744861099621,0.00011877,83873.0,83872.0,0.47445953]
[1744861099772,0.00011877,83873.0,83872.0,0.47545953]
[1744861100179,0.00011877,83873.0,83872.0,0.81545953]
[1744861100608,0.00111877,83873.0,83872.0,0.81545953]
[1744861100760,0.00011877,83873.0,83872.0,0.81545953]
[1744861101161,0.00111877,83873.0,83872.0,0.81945953]
[1744861103916,0.00111877,83873.0,83872.0,0.95745953]
[1744861104810,0.00111877,83873.0,83872.0,0.83801162]
[1744861106985,0.00111877,83873.0,83872.0,0.83301162]
[1744861107735,0.00111877,83873.0,83872.0,0.78601162]
[1744861110414,0.00111877,83873.0,83872.0,0.83391162]
[1744861118367,0.00111877,83873.0,83872.0,0.78601162]
[1744861123812,0.00111877,83873.0,83872.0,0.64801162]
[1744861124011,0.00111877,83873.0,83872.0,0.78597162]
[1744861129217,0.00111877,83873.0,83872.0,0.90541953]
[1744861133473,0.00111877,83873.0,83872.0,0.73867162]
[1744861140265,0.00111877,83873.0,83872.0,0.95381953]
[1744861144752,0.00111877,83873.0,83872.0,0.98593928]
[1744861145139,0.00111877,83873.0,83872.0,1.40473928]
[1744861147319,0.0008424,83902.0,83901.0,0.23837618]
[1744861147510,0.0008424,83902.0,83901.0,0.24075968]
[1744861147511,0.00096178,83902.0,83901.0,0.24075968]
[1744861147804,0.00096178,83902.0,83901.0,0.27510694]
[1744861148022,0.00096178,83902.0,83901.0,0.27272344]
[1744861149017,0.00096178,83902.0,83901.0,0.73217135]
[1744861149189,0.00296178,83902.0,83901.0,0.73217135]
[1744861149596,0.00696178,83902.0,83901.0,0.73317135]
[1744861149766,0.00496178,83902.0,83901.0,0.73317135]
[1744861149961,0.00096178,83902.0,83901.0,0.73417135]
[1744861150268,0.00196178,83902.0,83901.0,0.73717135]
[1744861150467,0.00196178,83902.0,83901.0,0.61772344]
[1744861150865,0.00196178,83902.0,83901.0,0.59547042]
[1744861153997,0.00196178,83902.0,83901.0,0.005]
[1744861154178,0.24567746,83902.0,83901.0,0.005]
[1744861154399,0.00730412,83902.0,83901.0,0.005]
[1744861154895,0.00730412,83902.0,83901.0,0.003]
[1744861155024,0.00630412,83902.0,83899.0,0.01191909]
[1744861155223,0.00630412,83902.0,83901.0,0.001]
[1744861155778,0.00630412,83902.0,83899.0,0.01191909]
[1744861157112,0.00630412,83902.0,83899.0,0.01291909]
[1744861157975,0.00630412,83902.0,83900.0,0.23837902]
[1744861158557,0.00096178,83902.0,83901.0,0.00238349]
[1744861161169,0.00096178,83902.0,83900.0,0.23837902]
[1744861162448,0.00096178,83902.0,83900.0,0.23937902]
[1744861162766,0.00096178,83902.0,83900.0,0.24037902]
[1744861165293,0.00530027,83901.0,83900.0,0.24037902]
[1744861165517,0.00096178,83902.0,83900.0,0.24037902]
[1744861166119,0.00096178,83902.0,83900.0,0.23837902]
[1744861166314,0.00096178,83902.0,83900.0,0.23937902]
[1744861166518,0.00096178,83902.0,83900.0,0.24037902]
[1744861166691,0.00096178,83902.0,83900.0,0.23937902]
[1744861166924,0.00096178,83902.0,83900.0,0.24037902]
[1744861168451,0.00096178,83902.0,83900.0,0.23937902]
[1744861168984,0.00096178,83902.0,83900.0,0.24037902]
[1744861172594,0.00096178,83902.0,83900.0,0.37825902]
[1744861173680,0.23933562,83902.0,83900.0,0.13988]
[1744861173849,0.0464,83901.0,83900.0,0.13988]
[1744861174714,0.0464,83901.0,83900.0,0.13888]
[1744861175052,0.0464,83901.0,83900.0,0.13988]
[1744861175715,0.0464,83901.0,83900.0,0.13888]
[1744861176007,0.0464,83901.0,83900.0,0.13988]
[1744861176448,0.00096178,83902.0,83900.0,0.13988]
[1744861176870,0.00096178,83902.0,83901.0,0.23837618]
[1744861177038,0.00096178,83902.0,83901.0,0.24075968]
[1744861178416,0.00096178,83902.0,83901.0,0.24075959]
[1744861178627,0.00096178,83902.0,83901.0,0.24075941]
[1744861178968,0.00096178,83902.0,83901.0,0.58075941]
[1744861179115,0.00096178,83902.0,83901.0,0.60068178]
[1744861179670,0.00196178,83902.0,83901.0,0.60468178]
[1744861180026,0.00096178,83902.0,83901.0,0.60268178]
[1744861180326,0.00196178,83902.0,83901.0,0.60568178]
[1744861180871,0.00196178,83902.0,83901.0,0.60368178]
[1744861181238,0.00196178,83902.0,83901.0,0.60568178]
[1744861182376,0.00196178,83902.0,83901.0,0.72512969]
[1744861183680,0.00196178,83902.0,83901.0,0.70282409]
[1744861188214,0.00196178,83902.0,83901.0,0.58337618]
[1744861188632,0.00196178,83902.0,83901.0,0.72125618]
[1744861200131,0.00196178,83902.0,83901.0,0.74354976]
[1744861209532,0.00196178,83902.0,83901.0,0.72125618]
[1744861210074,0.00196178,83902.0,83901.0,0.14288]
[1744861210233,0.05186178,83902.0,83901.0,0.14288]
[1744861210432,0.05856993,83902.0,83901.0,0.38125618]
[1744861211294,0.05186178,83902.0,83901.0,0.24337618]
[1744861211655,0.00196178,83902.0,83901.0,0.24337618]
[1744861212659,0.00866993,83902.0,83901.0,0.005]
[1744861215910,0.05816993,83902.0,83901.0,0.005]
[1744861216663,0.05816993,83902.0,83899.0,0.39065947]
[1744861216664,0.05716993,83902.0,83899.0,0.39065947]
[1744861216801,0.05716993,83902.0,83901.0,0.001]
[1744861216999,0.05716993,83902.0,83901.0,0.002]
[1744861217206,0.05716993,83902.0,83901.0,0.001]
[1744861218135,0.05716993,83902.0,83899.0,0.39065947]
[1744861218546,0.05716993,83902.0,83899.0,0.39165947]
[1744861218952,0.05716993,83902.0,83901.0,0.23837618]
[1744861220268,0.05716993,83902.0,83901.0,0.23937618]
[1744861222326,0.00766993,83902.0,83901.0,0.24175989]
[1744861222525,0.00766993,83902.0,83901.0,0.24175946]
[1744861222726,0.00096178,83902.0,83901.0,0.24175946]
[1744861223692,0.00096178,83902.0,83901.0,0.23937618]
[1744861223889,0.00096178,83902.0,83901.0,0.24175948]
[1744861224293,0.00096178,83902.0,83901.0,0.23937618]
[1744861225463,0.00096178,83902.0,83901.0,0.2417595]
[1744861225867,0.00096178,83902.0,83901.0,0.2898595]
[1744861226063,0.00096178,83902.0,83901.0,0.23937618]
[1744861226263,0.00096178,83902.0,83901.0,0.24175945]
[1744861227090,0.00096178,83902.0,83901.0,0.24075945]
[1744861227288,0.00096178,83902.0,83901.0,0.24037618]
[1744861227693,0.00096178,83902.0,83901.0,0.24137618]
[1744861236491,0.00096178,83902.0,83901.0,0.38017618]
[1744861241394,0.00096178,83902.0,83901.0,0.24137618]
[1744861241597,0.00096178,83902.0,83901.0,0.38017618]
[1744861250243,0.00096178,83902.0,83901.0,0.1418]
[1744861250792,0.00993879,83902.0,83901.0,0.1418]
[1744861250985,0.00096178,83902.0,83901.0,0.1418]
[1744861251342,0.00096178,83902.0,83901.0,0.1408]
[1744861251740,0.00096178,83902.0,83901.0,0.1418]
[1744861252625,0.00096178,83902.0,83901.0,0.1398]
[1744861252835,0.00096178,83902.0,83901.0,0.1408]
[1744861254221,0.00993879,83902.0,83901.0,0.1408]
[1744861256014,0.00096178,83902.0,83901.0,0.1408]
[1744861263046,0.00096178,83902.0,83901.0,0.14318349]
[1744861264272,0.00096178,83902.0,83901.0,0.2626314]
[1744861264475,0.00096178,83902.0,83901.0,0.26024791]
[1744861265074,0.00096178,83902.0,83901.0,0.60024791]
[1744861277983,0.00096178,83902.0,83901.0,0.62256606]
[1744861284000,0.00096178,83902.0,83901.0,0.50311815]
[1744861284243,0.28493512,83902.0,83901.0,0.16311815]
[1744861284355,0.04656178,83902.0,83901.0,0.16311815]
[1744861284570,0.04656178,83902.0,83901.0,0.1408]
[1744861284884,0.05492883,83902.0,83901.0,0.1408]
[1744861285305,0.05492883,83902.0,83901.0,0.1398]
[1744861286582,0.29330217,83902.0,83901.0,0.1398]
[1744861287644,0.05492883,83902.0,83901.0,0.1398]
[1744861288157,0.05492883,83902.0,83901.0,0.37817618]
[1744861290209,0.00932883,83902.0,83901.0,0.37817618]
[1744861290410,0.00096178,83902.0,83901.0,0.37817618]
[1744861290569,0.00096178,83902.0,83901.0,0.40048433]
[1744861293468,0.00096178,83902.0,83901.0,0.41163727]
[1744861294070,0.00096178,83902.0,83901.0,0.41263727]
[1744861294312,0.00096178,83902.0,83901.0,0.40148433]
[1744861296160,0.00096178,83902.0,83901.0,0.41263853]
[1744861299116,0.00096178,83902.0,83901.0,0.40148433]
[1744861300777,0.00096178,83902.0,83901.0,0.37917618]
[1744861304194,0.00096178,83902.0,83901.0,0.40149096]
[1744861304703,0.00096178,83902.0,83901.0,0.41264877]
[1744861306424,0.00096178,83902.0,83901.0,0.41164877]
[1744861307776,0.00096178,83902.0,83901.0,0.41264877]
[1744861308762,0.00096178,83902.0,83901.0,0.39033399]
[1744861310617,0.00096178,83902.0,83901.0,0.41265232]
[1744861312680,0.00096178,83902.0,83901.0,0.39033399]
[1744861314708,0.00096178,83902.0,83901.0,0.17427737]
[1744861314886,0.00793975,83902.0,83901.0,0.17427737]
[1744861316077,0.00793975,83902.0,83901.0,0.16311956]
[1744861316231,0.00096178,83902.0,83901.0,0.02431956]
[1744861316431,0.00794128,83902.0,83901.0,0.02431956]
[1744861316673,0.00096178,83902.0,83901.0,0.02431956]
[1744861318183,0.00794128,83902.0,83901.0,0.02431956]
[1744861319860,0.00794128,83902.0,83901.0,0.02331956]
[1744861320058,0.00794128,83902.0,83901.0,0.02231956]
[1744861320198,0.00794128,83902.0,83893.0,0.25031767]
[1744861320199,0.23841596,83887.0,83883.0,0.01192136]
[1744861320403,0.23841312,83888.0,83887.0,0.13792]
[1744861320854,0.24533042,83888.0,83887.0,0.13792]
[1744861321116,0.0069173,83888.0,83887.0,0.13792]
[1744861321320,0.0069173,83888.0,83887.0,0.37633596]
[1744861321672,0.0467,83889.0,83887.0,0.39865965]
[1744861322180,0.0467,83889.0,83888.0,0.02232369]
[1744861323022,0.0477,83889.0,83888.0,0.02232369]
[1744861323275,0.0467,83889.0,83888.0,0.02232369]
[1744861324603,0.0477,83889.0,83888.0,0.02232369]
[1744861328949,0.0477,83889.0,83887.0,0.37633596]
[1744861330062,0.0467,83889.0,83888.0,0.02227476]
[1744861330373,0.0477,83889.0,83888.0,0.02227476]
[1744861331582,0.0467,83889.0,83888.0,0.02227476]
[1744861331770,0.0477,83889.0,83888.0,0.02227476]
[1744861335622,0.28611028,83889.0,83888.0,0.02227476]
[1744861335981,0.29178991,83889.0,83888.0,0.02227476]
[1744861338151,0.29178991,83889.0,83887.0,0.13792]
[1744861339198,0.29078991,83889.0,83887.0,0.13792]
[1744861339393,0.29178991,83889.0,83887.0,0.13792]
[1744861340169,0.29178991,83889.0,83888.0,0.02227596]
[1744861340829,0.29178991,83889.0,83887.0,0.13792]
[1744861341039,0.01192108,83885.0,83882.0,0.0119215]
[1744861341473,0.0056742,83884.0,83882.0,0.0119215]
[1744861342129,0.0056742,83884.0,83883.0,0.02228074]
[1744861344479,0.0056742,83884.0,83883.0,0.02328074]
[1744861344681,0.02021505,83884.0,83883.0,0.02328074]
[1744861345029,0.02021505,83884.0,83883.0,0.02428074]
[1744861345858,0.02021505,83884.0,83883.0,0.02328074]
[1744861346060,0.02021505,83884.0,83883.0,0.02228074]
[1744861353046,0.02121505,83884.0,83883.0,0.02228074]
[1744861353955,0.0119215,83882.0,83879.0,0.13796]
[1744861354114,0.01192236,83876.0,83871.0,0.2503818]
[1744861354314,0.00561863,83875.0,83873.0,0.13796]
[1744861354716,0.00561863,83875.0,83873.0,0.38832304]
[1744861354918,0.25036839,83877.0,83873.0,0.40024582]
[1744861355126,0.00562177,83876.0,83873.0,0.40024582]
[1744861355330,0.00566728,83876.0,83873.0,0.40024582]
[1744861355939,0.001,83875.0,83873.0,0.40324582]
[1744861356229,0.00561549,83874.0,83873.0,0.40024582]
[1744861356456,0.00561549,83874.0,83873.0,0.40324582]
[1744861356648,0.00104551,83876.0,83873.0,0.40024582]
[1744861356810,0.00561549,83874.0,83873.0,0.40024582]
[1744861357011,0.01296787,83876.0,83873.0,0.40024582]
[1744861357225,0.00561549,83874.0,83873.0,0.40224582]
[1744861357419,0.01296787,83876.0,83873.0,0.40224582]
[1744861357682,0.00561549,83874.0,83873.0,0.40224582]
[1744861357905,0.00104551,83876.0,83875.0,0.23845007]
[1744861358108,0.00104551,83876.0,83875.0,0.2878344]
[1744861358303,4.551e-05,83876.0,83875.0,0.28545007]
[1744861358684,0.00104551,83876.0,83875.0,0.28545007]
[1744861359052,0.00104551,83876.0,83875.0,0.30976207]
[1744861360120,0.00104551,83876.0,83875.0,0.31076207]
[1744861367736,0.00104551,83876.0,83875.0,0.26376207]
[1744861372367,0.00104551,83876.0,83875.0,0.40172207]
[1744861374279,0.0066885,83876.0,83875.0,0.40172207]
[1744861374458,0.00104551,83876.0,83875.0,0.40172207]
[1744861374638,0.0066885,83876.0,83875.0,0.40172207]
[1744861374839,0.00104551,83876.0,83875.0,0.40172207]
[1744861375039,0.0066885,83876.0,83875.0,0.40172207]
[1744861375239,0.00104551,83876.0,83875.0,0.40172207]
[1744861375439,0.0066885,83876.0,83875.0,0.40172207]
[1744861375684,0.00104551,83876.0,83875.0,0.40172207]
[1744861375887,0.0066885,83876.0,83875.0,0.40172207]
[1744861376086,0.00104551,83876.0,83875.0,0.40172207]
[1744861376289,0.0066885,83876.0,83875.0,0.40172207]
[1744861378578,0.00104551,83876.0,83875.0,0.40172207]
[1744861378893,0.00104551,83876.0,83875.0,0.41009411]
[1744861379398,0.00104551,83876.0,83875.0,0.45969411]
[1744861380003,0.00104551,83876.0,83875.0,0.47085666]
[1744861381347,0.00104551,83876.0,83875.0,0.42125666]
[1744861382551,0.00104551,83876.0,83875.0,0.41009411]
[1744861385131,0.00104551,83876.0,83875.0,0.42125856]
[1744861395061,0.00104551,83876.0,83875.0,0.18280849]
[1744861395415,0.00572887,83876.0,83875.0,0.18280849]
[1744861395802,0.00472887,83876.0,83875.0,0.18276849]
[1744861396006,0.00472887,83876.0,83875.0,0.18076849]
[1744861396206,0.00472887,83876.0,83875.0,0.16960404]
[1744861397065,0.00472887,83876.0,83875.0,0.17060404]
[1744861397799,0.00472887,83876.0,83875.0,0.03268404]
[1744861398109,0.00472887,83876.0,83875.0,0.01037204]
[1744861405982,0.05272887,83876.0,83875.0,0.01037204]
[1744861406435,0.05272887,83876.0,83875.0,0.002]
[1744861407350,0.00472887,83876.0,83875.0,0.002]
[1744861408793,0.00472887,83876.0,83875.0,0.01037145]
[1744861412841,0.00472887,83876.0,83875.0,0.002]
[1744861416455,4.551e-05,83876.0,83875.0,0.002]
[1744861431869,4.551e-05,83876.0,83875.0,0.001]
[1744861432070,0.0119225,83875.0,83871.0,0.01192307]
[1744861433746,0.01192264,83874.0,83871.0,0.01192307]
[1744861434706,0.01454085,83872.0,83867.0,1e-08]
[1744861434906,0.01454085,83869.0,83867.0,1e-08]
[1744861435311,0.25300803,83869.0,83867.0,1e-08]
[1744861440564,0.0452,83868.0,83867.0,1e-08]
[1744861440769,0.05974085,83868.0,83867.0,1e-08]
[1744861441858,0.06074085,83868.0,83867.0,1e-08]
[1744861442051,0.18018876,83868.0,83867.0,1e-08]
[1744861442300,0.18118876,83868.0,83867.0,1e-08]
[1744861443404,0.22768876,83868.0,83867.0,1e-08]
[1744861443609,0.22668876,83868.0,83867.0,1e-08]
[1744861443841,0.23868876,83868.0,83867.0,1e-08]
[1744861444247,0.64658876,83868.0,83867.0,1e-08]
[1744861444450,0.64958876,83868.0,83867.0,1e-08]
[1744861444673,0.98958876,83868.0,83867.0,1e-08]
[1744861445091,0.99258876,83868.0,83867.0,0.00100001]
[1744861445285,0.99258876,83868.0,83867.0,1e-08]
[1744861445482,0.99158876,83868.0,83867.0,1e-08]
[1744861445916,0.98158876,83868.0,83867.0,1e-08]
[1744861446758,0.98158876,83868.0,83867.0,0.00100001]
[1744861446759,0.54334791,83868.0,83867.0,0.00100001]
[1744861446976,0.53034791,83868.0,83867.0,1e-08]
[1744861447177,0.53534791,83868.0,83867.0,1e-08]
[1744861447349,0.55888876,83868.0,83867.0,0.00100001]
[1744861447530,0.54988876,83868.0,83867.0,1e-08]
[1744861447934,0.55588876,83868.0,83867.0,0.00100001]
[1744861448129,0.55088876,83868.0,83867.0,0.00100001]
[1744861448555,0.55388876,83868.0,83867.0,0.00100001]
[1744861449691,0.14298876,83868.0,83867.0,0.00100001]
[1744861466998,0.18888876,83868.0,83867.0,0.00100001]
[1744861486814,0.02354085,83868.0,83867.0,0.00100001]
[1744861487018,0.009,83868.0,83867.0,0.00100001]
[1744861509361,0.07204085,83868.0,83867.0,0.00100001]
[1744861509646,0.19148876,83868.0,83867.0,0.00100001]
[1744861514538,0.14298876,83868.0,83867.0,0.00100001]
[1744861519286,0.19008876,83868.0,83867.0,0.00100001]
[1744861537580,0.23848703,83862.0,83861.0,0.0004209]
[1744861537753,1.07569579,83862.0,83861.0,0.0004209]
[1744861539237,1.08469579,83862.0,83861.0,0.0014209]
[1744861539442,1.08969579,83862.0,83861.0,0.0014209]
[1744861541485,1.11103272,83862.0,83861.0,0.0014209]
[1744861542818,1.08969579,83862.0,83861.0,0.0014209]
[1744861543043,0.40174085,83859.0,83858.0,1e-08]
[1744861543290,0.74828876,83859.0,83858.0,1e-08]
[1744861545500,0.75741557,83859.0,83858.0,1e-08]
[1744861546425,0.76741557,83859.0,83858.0,1e-08]
[1744861546650,0.89186348,83859.0,83858.0,1e-08]
[1744861547436,0.77241557,83859.0,83858.0,1e-08]
[1744861553242,0.34,83853.0,83851.0,1e-08]
[1744861553397,0.34,83853.0,83839.0,0.0004211]
[1744861553398,0.06354085,83847.0,83846.0,1e-08]
[1744861553598,0.83070876,83847.0,83846.0,1e-08]
[1744861554717,1.2036171,83847.0,83846.0,1e-08]
[1744861555398,1.2096171,83847.0,83846.0,1e-08]
[1744861555907,1.2186171,83847.0,83846.0,1e-08]
[1744861556327,1.2186571,83847.0,83846.0,1e-08]
[1744861560775,1.2186571,83847.0,83838.0,1e-08]
[1744861560776,0.40304085,83839.0,83838.0,1e-08]
[1744861560978,0.70248876,83839.0,83838.0,1e-08]
[1744861561801,0.70648876,83839.0,83838.0,1e-08]
[1744861562027,0.71348876,83839.0,83838.0,1e-08]
[1744861562226,0.70948876,83839.0,83838.0,1e-08]
[1744861562680,0.71548876,83839.0,83838.0,1e-08]
[1744861563039,0.72763262,83839.0,83838.0,1e-08]
[1744861563265,0.73663262,83839.0,83838.0,1e-08]
[1744861563471,0.64589262,83839.0,83838.0,1e-08]
[1744861563674,0.63374876,83839.0,83838.0,1e-08]
[1744861563828,0.61920791,83839.0,83838.0,1e-08]
[1744861564028,0.63374876,83839.0,83838.0,1e-08]
[1744861565068,0.27920791,83839.0,83838.0,1e-08]
[1744861565466,0.29374876,83839.0,83838.0,1e-08]
[1744861566179,0.27774876,83839.0,83838.0,1e-08]
[1744861566633,0.28374876,83839.0,83838.0,1e-08]
[1744861567142,0.27774876,83839.0,83838.0,1e-08]
[1744861567314,0.28074876,83839.0,83838.0,1e-08]
[1744861567739,0.27174876,83839.0,83838.0,1e-08]
[1744861568174,0.14198876,83839.0,83838.0,1e-08]
[1744861568583,0.2074753,83839.0,83838.0,1e-08]
[1744861568790,0.14198876,83839.0,83838.0,1e-08]
[1744861569954,0.13898876,83839.0,83838.0,1e-08]
[1744861570274,0.14198876,83839.0,83838.0,1e-08]
[1744861570993,0.13698876,83839.0,83838.0,1e-08]
[1744861571201,0.14298876,83839.0,83838.0,1e-08]
[1744861572985,0.31298876,83839.0,83838.0,1e-08]
[1744861573876,0.14298876,83839.0,83838.0,1e-08]
[1744861577684,0.31298876,83839.0,83838.0,1e-08]
[1744861580074,0.14298876,83839.0,83838.0,1e-08]
[1744861583054,0.009,83839.0,83838.0,0.04510001]
[1744861583218,0.009,83839.0,83838.0,0.33164079]
[1744861583419,0.009,83839.0,83838.0,0.32925531]
[1744861583618,0.009,83839.0,83838.0,0.33761655]
[1744861583860,0.003,83839.0,83838.0,0.35991321]
[1744861584017,4.548e-05,83847.0,83846.0,0.32923254]
[1744861584215,4.548e-05,83847.0,83846.0,0.34094596]
[1744861584423,4.548e-05,83847.0,83846.0,0.3493072]
[1744861584626,4.548e-05,83847.0,83846.0,0.37160386]
[1744861585847,4.548e-05,83847.0,83846.0,0.49105177]
[1744861586705,0.00204548,83847.0,83846.0,0.83105177]
[1744861586902,4.548e-05,83847.0,83846.0,0.83105177]
[1744861587288,0.00104548,83847.0,83846.0,0.83105177]
[1744861588673,0.00104548,83847.0,83846.0,0.82269053]
[1744861588870,0.00104548,83847.0,83846.0,0.83102505]
[1744861589077,0.00104548,83847.0,83846.0,0.96870505]
[1744861590035,0.00104548,83847.0,83846.0,0.94640839]
[1744861592993,0.00104548,83847.0,83846.0,0.81524706]
[1744861593213,0.00104548,83847.0,83846.0,0.67756706]
[1744861593380,0.00104548,83847.0,83846.0,0.47520706]
[1744861593822,0.00104548,83847.0,83846.0,0.46687254]
[1744861600202,0.00104548,83847.0,83846.0,0.48909678]
[1744861600893,0.00104548,83847.0,83846.0,0.46687254]
[1744861605365,0.00104548,83847.0,83846.0,0.32923254]
[1744861608115,0.00104548,83847.0,83846.0,0.28363254]
[1744861610664,0.00104548,83847.0,83846.0,0.29199034]
[1744861612239,0.00104548,83847.0,83846.0,0.2919958]
[1744861619720,0.00104548,83847.0,83846.0,0.31432107]
[1744861620854,0.00104548,83847.0,83846.0,0.36242107]
[1744861622793,0.00104548,83847.0,83846.0,0.70242107]
[1744861623726,0.00104548,83847.0,83846.0,0.82186898]
[1744861623950,0.00104548,83847.0,83846.0,0.79954371]
[1744861624967,4.548e-05,83847.0,83846.0,0.79954371]
[1744861625616,0.00104548,83847.0,83846.0,0.79954371]
[1744861631645,1e-08,83847.0,83846.0,0.79954371]
[1744861632055,1e-08,83847.0,83846.0,1.21834371]
[1744861632262,1e-08,83847.0,83846.0,1.21934371]
[1744861632863,1e-08,83847.0,83846.0,1.25141216]
[1744861633076,0.0008422,83881.0,83880.0,0.23843586]
[1744861633280,0.00088773,83881.0,83880.0,0.23843586]
[1744861633888,0.00088773,83881.0,83880.0,0.26073454]
[1744861634473,0.00388773,83881.0,83880.0,0.27009232]
[1744861634889,0.00388773,83881.0,83880.0,0.24779364]
[1744861635230,0.00388773,83881.0,83880.0,0.00935778]
[1744861635640,0.05268773,83881.0,83880.0,0.00935778]
[1744861635775,0.05268773,83881.0,83880.0,0.001]
[1744861635980,0.11302858,83881.0,83880.0,0.001]
[1744861636601,0.11402858,83881.0,83880.0,0.001]
[1744861638036,0.23347649,83881.0,83880.0,0.001]
[1744861639277,0.01454085,83866.0,83864.0,0.01192406]
[1744861640013,0.01454085,83867.0,83866.0,0.01192378]
[1744861640478,0.01454085,83868.0,83867.0,0.25039646]
[1744861640647,0.01454085,83868.0,83867.0,0.01192364]
[1744861640858,0.01454085,83869.0,83867.0,0.01192364]
[1744861641620,0.01454085,83870.0,83867.0,0.01192364]
[1744861642049,0.02646406,83870.0,83867.0,0.01192364]
[1744861642276,0.01454085,83867.0,83864.0,0.01192406]
[1744861642520,0.02646449,83867.0,83863.0,0.0119242]
[1744861643376,0.02646449,83867.0,83864.0,0.01192406]
[1744861644649,0.02646449,83867.0,83864.0,0.01292406]
[1744861645503,0.28607833,83866.0,83864.0,0.001]
[1744861645981,0.28607833,83866.0,83864.0,0.002]
[1744861646475,0.28607833,83866.0,83864.0,0.001]
[1744861646476,0.01192392,83865.0,83864.0,0.001]
[1744861646906,0.01192392,83865.0,83862.0,0.01192435]
[1744861647242,0.01192392,83865.0,83864.0,0.001]
[1744861647418,0.01192392,83865.0,83862.0,0.01192435]
[1744861647623,0.01392392,83865.0,83864.0,0.001]
[1744861649026,0.01192392,83865.0,83862.0,0.01192435]
[1744861649364,0.01292392,83865.0,83862.0,0.01192435]
[1744861649778,0.01292392,83865.0,83864.0,0.001]
[1744861649980,0.01492392,83865.0,83864.0,0.001]
[1744861650183,0.01192392,83865.0,83862.0,0.01192435]
[1744861650614,0.01192392,83865.0,83861.0,0.01192449]
[1744861650615,0.01192406,83864.0,83861.0,0.01192449]
[1744861651299,0.23848988,83861.0,83860.0,0.13756]
[1744861652016,0.01454085,83858.0,83852.0,0.23851285]
[1744861652222,0.01454085,83859.0,83852.0,0.37607285]
[1744861652424,0.01454085,83859.0,83852.0,0.23851285]
[1744861653139,0.01192492,83858.0,83855.0,0.01192534]
[1744861653335,0.02646562,83859.0,83855.0,0.01192534]
[1744861653551,0.02746562,83859.0,83855.0,0.01192534]
[1744861654192,0.01292492,83858.0,83855.0,0.01192534]
[1744861655491,0.01192492,83858.0,83855.0,0.01192534]
[1744861656280,0.01292492,83858.0,83855.0,0.01192534]
[1744861658148,0.001,83858.0,83855.0,0.01192534]
[1744861658544,0.001,83858.0,83855.0,0.25042972]
[1744861658780,0.001,83858.0,83857.0,0.23850125]
[1744861658934,0.001,83858.0,83857.0,0.28878587]
[1744861659137,0.001,83858.0,83857.0,0.28640125]
[1744861659568,0.02646306,83877.0,83873.0,0.01192278]
[1744861660206,0.26490779,83877.0,83873.0,0.01192278]
[1744861661574,0.04818773,83881.0,83878.0,0.01192207]
[1744861661777,0.01454085,83880.0,83878.0,0.01192207]
[1744861661952,0.01454085,83880.0,83875.0,0.0119225]
[1744861661953,0.02646264,83880.0,83875.0,0.0119225]
[1744861662111,0.002,83877.0,83875.0,0.0119225]
[1744861662319,0.002,83877.0,83875.0,0.25036976]
[1744861662505,0.005,83877.0,83875.0,0.25036976]
[1744861663105,0.005,83877.0,83875.0,0.25136976]
[1744861663349,0.01454085,83879.0,83876.0,0.25036959]
[1744861663603,0.004,83877.0,83876.0,0.25036959]
[1744861664877,0.003,83877.0,83876.0,0.25036959]
[1744861665166,0.00088773,83881.0,83880.0,0.23843586]
[1744861665367,0.00088773,83881.0,83880.0,0.24081995]
[1744861665567,0.00088773,83881.0,83880.0,0.24917852]
[1744861665765,0.00088773,83881.0,83880.0,0.24679443]
[1744861666523,0.00288773,83881.0,83880.0,0.24779443]
[1744861666718,0.00388773,83881.0,83880.0,0.24779443]
[1744861666949,0.00388773,83881.0,83880.0,0.38531443]
[1744861670793,0.00388773,83881.0,83880.0,0.37695586]
[1744861673196,0.00388773,83881.0,83880.0,0.13852]
[1744861684209,0.01842858,83881.0,83880.0,0.001]
[1744861689376,0.01842858,83881.0,83880.0,0.00936446]
[1744861689572,0.00388773,83881.0,83880.0,0.24780032]
[1744861691323,0.00188773,83881.0,83880.0,0.24680032]
[1744861691728,0.00088773,83881.0,83880.0,0.36624823]
[1744861691932,0.00088773,83881.0,83880.0,0.41214823]
[1744861692090,0.00088773,83881.0,83880.0,0.41314823]